bitfinex/quotes_ETHUSD_20241003
["timestamp","ask_amount","ask_price","bid_price","bid_amount"]
[1727948823237,4.24504,2355.7,2355.2,4.24588]
[1727948823238,4.24529,2355.6,2355.2,4.24588]
[1727948823542,4.24504,2355.7,2355.3,4.31589023]
[1727948823839,4.24504,2355.7,2355.2,3.0]
[1727948824037,4.24497,2355.8,2355.4,4.24555]
[1727948824399,4.24509,2355.7,2355.3,4.24572]
[1727948824737,4.2454,2355.5,2355.2,3.0]
[1727948824941,4.2457,2355.4,2354.9,4.670944]
[1727948825297,4.2458,2355.3,2354.9,4.670944]
[1727948825506,8.30246597,2355.8,2354.9,0.424644]
[1727948825759,8.30246597,2355.8,2355.3,4.24572]
[1727948825760,4.24505,2355.7,2355.3,4.24572]
[1727948826058,4.24509,2355.7,2355.2,4.24584]
[1727948826217,4.24521,2355.6,2355.2,4.24584]
[1727948826548,4.24509,2355.7,2355.2,4.24584]
[1727948826764,4.24509,2355.7,2355.3,4.32823646]
[1727948827037,4.24476,2355.9,2354.9,4.671084]
[1727948827038,4.24521,2355.6,2355.0,4.24614]
[1727948827344,4.24521,2355.6,2355.0,4.24619]
[1727948827345,8.49142,2355.4,2355.0,4.24619]
[1727948827509,4.24538,2355.5,2355.1,4.24608]
[1727948827709,4.24523,2355.6,2355.2,4.28886654]
[1727948828030,4.24523,2355.6,2355.2,4.32335735]
[1727948828217,4.24508,2355.7,2355.3,4.24558]
[1727948828401,4.24522,2355.6,2355.3,4.24558]
[1727948828603,5.58462514,2355.8,2355.4,4.24554]
[1727948828804,4.24484,2355.8,2355.4,4.27624732]
[1727948829246,4.24475,2355.9,2355.3,4.24561]
[1727948829545,4.24502,2355.7,2355.4,0.08490098]
[1727948830044,1.33978514,2355.8,2355.3,4.24566]
[1727948830252,1.33978514,2355.8,2355.3,4.670226]
[1727948830253,4.24511,2355.7,2355.3,4.670226]
[1727948830569,5.58470514,2355.8,2355.4,4.24548]
[1727948830849,9.82969514,2355.8,2355.4,4.24548]
[1727948831148,4.24508,2355.7,2355.3,4.670226]
[1727948831453,1.33978514,2355.7,2355.4,4.24545]
[1727948831856,5.58483514,2355.7,2355.4,0.0635604]
[1727948832238,1.33978514,2355.7,2355.4,4.31070935]
[1727948832413,5.58482514,2355.7,2355.4,4.31070935]
[1727948832627,1.33978514,2355.7,2355.3,4.670256]
[1727948832828,1.33978514,2355.7,2355.4,4.30956413]
[1727948833232,1.33978514,2355.8,2355.6,4.2452]
[1727948833434,1.78087013,2355.9,2355.4,0.96206614]
[1727948833435,1.33978514,2355.9,2355.7,4.245]
[1727948833741,1.33978514,2355.9,2355.4,0.89798201]
[1727948833742,5.58446514,2355.9,2355.6,4.24502]
[1727948834102,1.33978514,2355.9,2355.6,4.24502]
[1727948834503,1.33978514,2355.9,2355.3,0.424566]
[1727948834746,4.05750597,2355.6,2354.9,3.0]
[1727948834903,4.05750597,2355.6,2355.2,3.0]
[1727948834904,8.30277597,2355.6,2355.2,3.0]
[1727948835099,8.30277597,2355.6,2354.4,1.33016101]
[1727948835100,4.05750597,2355.4,2355.1,3.0]
[1727948835304,4.05750597,2355.2,2354.8,4.24656]
[1727948835541,4.24629,2355.0,2354.6,4.24686]
[1727948835730,4.24629,2355.0,2354.5,4.24705]
[1727948836156,5.58601514,2355.1,2354.9,4.24632]
[1727948836157,1.33978514,2355.1,2354.9,4.24632]
[1727948836303,1.33978514,2355.2,2354.9,4.24632]
[1727948836649,1.33978514,2355.3,2355.1,4.24596]
[1727948836831,1.33978514,2355.3,2355.0,0.08492018]
[1727948836832,1.33978514,2355.4,2355.2,4.24592]
[1727948837005,1.33978514,2355.4,2355.1,4.33099119]
[1727948837243,1.78087013,2355.5,2355.2,4.24579]
[1727948837244,1.33978514,2355.5,2355.2,4.24579]
[1727948837956,5.58518514,2355.5,2355.1,4.24606]
[1727948838443,1.33978514,2355.5,2355.2,4.24583]
[1727948838645,1.33978514,2355.5,2355.1,4.27981317]
[1727948838646,5.58519514,2355.5,2355.1,4.24606]
[1727948838860,4.24585,2355.3,2354.9,4.24633]
[1727948839207,5.58563514,2355.3,2354.9,4.24633]
[1727948839444,9.64286111,2355.4,2355.0,4.2462]
[1727948839644,4.24593,2355.2,2354.8,4.24661]
[1727948840009,4.24593,2355.2,2354.7,4.24667]
[1727948840010,4.24619,2355.1,2354.7,4.24667]
[1727948840208,1.33978514,2355.3,2354.9,4.24644]
[1727948840209,5.58560514,2355.3,2354.9,4.24644]
[1727948840550,5.58538514,2355.4,2355.0,4.24628]
[1727948841547,5.58538514,2355.4,2354.9,4.24644]
[1727948841724,5.58543514,2355.4,2354.9,4.24634]
[1727948841933,5.58543514,2355.4,2355.0,4.24628]
[1727948842364,1.33978514,2355.4,2355.2,4.24589]
[1727948842565,1.33978514,2355.5,2355.2,4.24589]
[1727948842919,1.33978514,2355.5,2355.1,0.08491122]
[1727948843163,1.33978514,2355.5,2355.2,4.24586]
[1727948843827,1.33978514,2355.4,2355.2,4.24586]
[1727948844165,1.33978514,2355.4,2355.1,4.33091896]
[1727948845361,6.02625013,2355.5,2355.1,4.33091896]
[1727948845362,1.33978514,2355.5,2355.2,4.24591]
[1727948845523,1.33978514,2355.4,2355.2,4.33081535]
[1727948845727,1.33978514,2355.4,2355.1,8.49201]
[1727948845971,5.58517514,2355.5,2355.1,4.670601]
[1727948846271,1.33978514,2355.4,2355.1,4.670601]
[1727948846566,5.58536514,2355.4,2355.1,0.424601]
[1727948846894,5.58536514,2355.4,2355.2,4.24592]
[1727948846895,1.33978514,2355.4,2355.2,4.24592]
[1727948847099,1.33978514,2355.4,2354.8,4.24663]
[1727948847268,1.33978514,2355.4,2354.5,3.0]
[1727948847269,5.58542514,2355.4,2355.0,4.24623]
[1727948847475,5.58542514,2355.4,2355.1,0.849257]
[1727948847783,5.58542514,2355.4,2355.0,4.24623]
[1727948847784,1.33978514,2355.3,2355.0,4.24623]
[1727948847985,1.33978514,2355.3,2355.1,4.24609]
[1727948848288,1.33978514,2355.9,2355.5,4.24538]
[1727948848493,1.33978514,2355.9,2355.0,3.0]
[1727948848661,1.33978514,2355.9,2355.6,4.24516]
[1727948848860,1.33978514,2355.9,2355.8,4.24474]
[1727948849113,1.33978514,2356.0,2355.7,4.24493]
[1727948849397,1.33978514,2356.0,2355.7,9.0292496]
[1727948849601,1.33978514,2356.0,2355.7,4.24491]
[1727948849896,1.33978514,2356.0,2355.9,4.24466]
[1727948850099,1.33978514,2356.1,2355.9,4.24466]
[1727948851359,1.33978514,2356.2,2355.9,4.24466]
[1727948851966,1.33978514,2356.1,2355.9,4.24466]
[1727948852407,1.33978514,2356.2,2355.9,4.24466]
[1727948853473,1.33978514,2356.2,2356.0,4.24448]
[1727948854066,1.33978514,2356.3,2356.0,4.24448]
[1727948854800,1.33978514,2356.3,2356.0,4.24446]
[1727948855537,1.33978514,2356.2,2356.0,4.24446]
[1727948856942,1.33978514,2356.2,2355.8,4.24481]
[1727948857148,5.89605067,2356.2,2355.7,7.24485]
[1727948857294,5.89605067,2356.2,2355.6,4.24516]
[1727948857295,1.33978514,2356.1,2355.6,4.24516]
[1727948857491,1.33978514,2356.1,2354.9,4.24628]
[1727948857492,1.33978514,2356.0,2355.4,3.0]
[1727948857734,1.33978514,2356.0,2355.7,4.24492]
[1727948858101,1.33978514,2356.0,2355.6,4.24512]
[1727948858306,1.33978514,2356.0,2355.7,4.24491]
[1727948858719,1.33978514,2356.0,2355.7,8.48984]
[1727948859053,1.33978514,2356.0,2355.7,4.24497]
[1727948859337,1.33978514,2356.1,2355.7,4.24497]
[1727948859519,1.33978514,2356.1,2355.8,4.24478]
[1727948861135,1.33978514,2356.1,2355.9,4.24462]
[1727948861335,1.33978514,2356.1,2355.8,4.24478]
[1727948862261,1.33978514,2356.1,2355.8,4.24476]
[1727948862565,1.33978514,2356.1,2356.0,4.24448]
[1727948862763,1.33978514,2356.2,2356.0,4.24448]
[1727948862932,1.33978514,2356.2,2355.6,0.724512]
[1727948863137,1.33978514,2356.2,2355.6,4.969532]
[1727948863138,1.33978514,2356.1,2355.6,4.969532]
[1727948863360,5.58408514,2356.1,2355.7,4.24493]
[1727948863565,1.33978514,2356.1,2355.8,4.24477]
[1727948863721,1.33978514,2356.1,2355.8,8.48949]
[1727948864236,1.33978514,2356.1,2355.0,4.48151076]
[1727948864237,1.33978514,2356.2,2355.6,4.24508]
[1727948864443,1.33978514,2356.0,2355.7,4.24494]
[1727948864749,1.33978514,2356.0,2355.0,0.424628]
[1727948864750,9.6414079,2355.9,2355.5,4.24535]
[1727948865325,9.82929514,2355.9,2355.5,4.24535]
[1727948865527,4.24509,2355.7,2355.2,4.24585]
[1727948865757,4.24521,2355.6,2355.2,4.24585]
[1727948866686,5.58484514,2355.7,2355.3,4.24574]
[1727948868532,1.33978514,2355.7,2355.4,4.2455]
[1727948868737,1.33978514,2355.8,2355.5,4.27301202]
[1727948869048,1.33978514,2355.9,2355.7,4.24495]
[1727948869385,1.33978514,2356.0,2355.8,4.24484]
[1727948869563,1.33978514,2356.1,2355.8,4.24484]
[1727948869767,5.58409514,2356.1,2355.7,4.24492]
[1727948870075,1.33978514,2356.1,2355.7,4.2449]
[1727948870239,1.33978514,2356.1,2355.9,4.24465]
[1727948870434,1.33978514,2356.1,2355.9,4.24452]
[1727948870775,5.58397514,2356.2,2355.8,4.24476]
[1727948871278,1.33978514,2356.1,2355.8,4.24476]
[1727948871430,1.33978514,2356.1,2355.8,5.136173]
[1727948876298,5.58397514,2356.2,2355.8,5.136173]
[1727948876591,1.33978514,2356.2,2355.9,4.24465]
[1727948877332,4.24396,2356.3,2356.0,4.2444]
[1727948877333,1.33978514,2356.3,2356.0,4.2444]
[1727948877453,1.33978514,2356.4,2356.1,0.48793331]
[1727948877654,4.24395,2356.3,2355.9,4.24458]
[1727948877851,5.58365514,2356.4,2356.0,4.2444]
[1727948879196,4.24402,2356.3,2355.9,4.24458]
[1727948879399,4.24418,2356.2,2355.8,8.4895]
[1727948879559,4.24402,2356.3,2355.8,8.4895]
[1727948879560,4.24396,2356.3,2355.9,4.24458]
[1727948880256,4.24396,2356.3,2355.8,5.09366]
[1727948880499,4.24433,2356.1,2355.6,4.24511]
[1727948880739,8.48943,2355.9,2355.5,7.24536]
[1727948880949,4.05688276,2356.0,2354.8,8.30338276]
[1727948880950,9.6411479,2356.0,2355.1,4.24596]
[1727948881094,9.6411479,2356.0,2355.2,4.670436]
[1727948881095,4.24529,2355.6,2355.2,4.670436]
[1727948881412,4.24509,2355.7,2355.3,4.24573]
[1727948881751,1.33978514,2355.9,2355.4,4.24548]
[1727948882037,1.33978514,2355.9,2355.5,4.24522]
[1727948882336,1.33978514,2356.1,2355.8,4.2448]
[1727948882544,5.58409514,2356.1,2355.7,4.24497]
[1727948882837,1.33978514,2356.1,2355.7,8.48991]
[1727948883199,1.33978514,2356.1,2355.7,4.24494]
[1727948883501,5.58410514,2356.1,2355.7,4.24494]
[1727948884123,1.33978514,2356.1,2355.7,0.07589582]
[1727948884495,5.58397514,2356.2,2355.8,4.24467]
[1727948884662,5.58397514,2356.2,2356.0,4.24446]
[1727948884663,1.33978514,2356.2,2356.0,4.24446]
[1727948884803,1.33978514,2356.4,2356.1,4.2443]
[1727948885000,1.33978514,2356.4,2355.9,0.43205658]
[1727948885204,1.33978514,2356.4,2356.1,4.24422]
[1727948885944,5.58363514,2356.4,2356.0,4.24446]
[1727948886094,1.33978514,2356.3,2356.0,4.24446]
[1727948886299,8.30108276,2356.2,2355.7,4.24488]
[1727948886549,8.30108276,2356.2,2355.5,4.24537]
[1727948886550,4.05688276,2356.0,2355.5,4.24537]
[1727948886700,4.24452,2356.0,2355.6,4.28861328]
[1727948886901,5.58430514,2356.0,2355.6,5.09844833]
[1727948887201,5.58430514,2356.0,2355.6,0.85339833]
[1727948887202,4.24467,2355.9,2355.6,0.85339833]
[1727948887436,4.24467,2355.9,2355.5,8.49068]
[1727948887646,5.58445514,2355.9,2355.5,8.49068]
[1727948888113,5.58445514,2355.9,2355.5,4.24531]
[1727948888448,1.33978514,2355.9,2355.6,4.24519]
[1727948888834,5.58430514,2356.0,2355.6,4.24519]
[1727948889341,5.58430514,2356.0,2355.7,4.24493]
[1727948889342,1.33978514,2356.0,2355.7,4.24493]
[1727948889548,1.33978514,2356.0,2355.8,4.24482]
[1727948889746,1.33978514,2356.0,2355.7,4.24493]
[1727948889916,1.33978514,2356.0,2355.8,4.24475]
[1727948890116,1.33978514,2356.1,2355.8,4.28401763]
[1727948890320,1.33978514,2356.0,2355.8,8.48947]
[1727948890507,1.33978514,2356.1,2355.8,8.48947]
[1727948890708,1.33978514,2356.1,2355.9,4.24465]
[1727948891016,1.78087013,2356.2,2356.1,4.2443]
[1727948891017,1.33978514,2356.2,2356.1,4.2443]
[1727948891201,1.33978514,2356.2,2356.1,0.848878]
[1727948891401,1.33978514,2356.2,2356.0,4.24444]
[1727948891619,1.33978514,2356.2,2356.0,4.24443]
[1727948892261,1.33978514,2356.2,2356.1,4.2443]
[1727948892668,1.33978514,2356.2,2355.9,4.24449]
[1727948892984,1.33978514,2356.2,2356.0,4.24434]
[1727948893281,5.58409514,2356.1,2355.8,4.24481]
[1727948893467,1.33978514,2356.0,2355.8,4.24481]
[1727948893623,1.33978514,2356.0,2355.9,4.24466]
[1727948893823,1.78087013,2356.2,2355.9,4.24466]
[1727948893824,1.33978514,2356.1,2355.9,4.24466]
[1727948894063,1.33978514,2356.1,2355.8,4.24481]
[1727948894561,1.33978514,2356.1,2355.9,4.24465]
[1727948895565,1.33978514,2356.1,2355.8,4.24477]
[1727948895566,1.33978514,2356.1,2355.8,4.24475]
[1727948896566,1.33978514,2356.1,2355.9,4.24457]
[1727948897089,1.33978514,2356.1,2355.9,8.4891]
[1727948897373,1.33978514,2356.1,2355.9,4.24453]
[1727948898384,1.33978514,2356.2,2356.0,4.24448]
[1727948898525,1.33978514,2356.3,2356.1,4.2443]
[1727948899126,1.33978514,2356.3,2355.9,0.424453]
[1727948899368,1.33978514,2356.3,2356.0,4.24444]
[1727948899733,1.33978514,2356.3,2356.0,4.24439]
[1727948899983,1.33978514,2356.3,2356.1,4.24417]
[1727948900936,1.33978514,2356.3,2356.0,4.7113443]
[1727948901647,1.33978514,2356.3,2356.0,4.7112943]
[1727948901836,1.33978514,2356.3,2356.1,4.2442]
[1727948902235,1.33978514,2356.3,2356.0,8.9556843]
[1727948902461,1.33978514,2356.3,2356.1,0.93801373]
[1727948903586,5.58375514,2356.3,2356.1,0.93801373]
[1727948903796,5.58375514,2356.3,2355.9,8.48914]
[1727948904143,4.24454,2356.0,2355.2,4.24592]
[1727948904369,1.33978514,2356.1,2355.6,4.24511]
[1727948904582,1.33978514,2356.0,2355.7,4.24499]
[1727948905088,5.58413514,2356.1,2355.7,4.24499]
[1727948905288,5.58413514,2356.1,2355.7,5.094016]
[1727948905646,1.33978514,2356.0,2355.7,5.094016]
[1727948905849,5.58427514,2356.0,2355.7,0.849026]
[1727948907178,1.33978514,2356.0,2355.9,4.24466]
[1727948907393,1.78087013,2356.1,2355.9,4.24466]
[1727948907394,1.33978514,2356.1,2355.9,4.24466]
[1727948907553,1.33978514,2356.1,2355.8,4.24466]
[1727948907756,5.58409514,2356.1,2355.8,4.24466]
[1727948908389,1.33978514,2356.1,2355.8,4.24466]
[1727948908984,5.58408514,2356.1,2355.8,4.24466]
[1727948909303,5.58408514,2356.1,2355.7,5.093996]
[1727948909469,1.33978514,2356.0,2355.7,4.24497]
[1727948909854,5.58408514,2356.1,2355.7,4.24497]
[1727948910599,1.33978514,2356.1,2355.7,4.24497]
[1727948910904,1.33978514,2356.0,2355.7,4.24497]
[1727948911898,1.33978514,2356.0,2355.6,7.24519]
[1727948912205,6.35594222,2356.0,2355.2,4.24583]
[1727948912414,4.24562,2355.4,2355.0,4.24618]
[1727948912559,4.24562,2355.4,2354.9,4.24639]
[1727948912560,4.24576,2355.3,2354.9,4.24639]
[1727948912914,4.24586,2355.3,2354.8,4.24654]
[1727948913206,5.3966679,2355.4,2354.9,4.24646]
[1727948913359,1.33978514,2355.3,2355.0,4.24627]
[1727948913561,1.33978514,2355.4,2355.1,4.24602]
[1727948913760,1.33978514,2355.5,2355.2,4.24584]
[1727948913961,6.02611013,2355.6,2355.2,4.24584]
[1727948913962,1.33978514,2355.6,2355.4,4.24556]
[1727948914198,1.33978514,2355.6,2355.3,4.29203202]
[1727948914199,1.33978514,2355.8,2355.7,4.24502]
[1727948914415,1.33978514,2355.9,2355.7,4.67415381]
[1727948914561,1.33978514,2356.0,2355.8,8.48937]
[1727948914763,1.33978514,2356.1,2355.8,4.24468]
[1727948915201,1.33978514,2356.1,2355.7,4.24499]
[1727948915595,1.33978514,2356.1,2355.8,4.24474]
[1727948915968,1.33978514,2356.1,2355.9,4.24459]
[1727948916167,1.33978514,2356.1,2355.8,4.24474]
[1727948916681,1.33978514,2356.1,2355.4,3.0]
[1727948916875,1.33978514,2356.0,2355.7,4.24495]
[1727948917805,1.33978514,2356.0,2355.8,4.24474]
[1727948918107,1.33978514,2356.1,2355.8,4.24474]
[1727948918308,1.33978514,2356.0,2355.8,4.24474]
[1727948918525,1.33978514,2356.1,2355.8,4.24474]
[1727948919189,1.33978514,2356.0,2355.8,4.24474]
[1727948919722,1.33978514,2356.1,2355.7,4.24495]
[1727948919925,5.58411514,2356.1,2355.7,4.24495]
[1727948920286,1.33978514,2356.1,2355.8,4.24473]
[1727948920480,1.33978514,2356.1,2355.9,4.24465]
[1727948920885,1.33978514,2356.1,2355.8,4.24472]
[1727948921215,1.33978514,2356.1,2356.0,4.24448]
[1727948921410,1.33978514,2356.2,2356.0,4.24448]
[1727948921817,1.33978514,2356.1,2355.9,4.24465]
[1727948922421,1.33978514,2356.1,2356.0,4.32936663]
[1727948922728,1.33978514,2356.3,2356.0,4.24448]
[1727948923020,1.33978514,2356.3,2356.1,4.24428]
[1727948923231,1.33978514,2356.4,2356.3,4.24394]
[1727948923785,1.33978514,2356.4,2356.0,4.24439]
[1727948924027,1.33978514,2356.4,2356.1,4.31841443]
[1727948925424,1.33978514,2356.4,2356.1,4.24417]
[1727948925989,1.33978514,2356.4,2356.2,4.24398]
[1727948926624,1.33978514,2356.4,2356.1,4.90866545]
[1727948927234,5.58362514,2356.4,2356.0,4.24445]
[1727948927389,5.58373514,2356.3,2355.9,4.24461]
[1727948928024,1.33978514,2356.3,2356.1,4.24423]
[1727948928240,1.78087013,2356.4,2356.1,8.48841]
[1727948928241,1.33978514,2356.4,2356.1,8.48841]
[1727948928383,1.33978514,2356.4,2355.9,1.148945]
[1727948928384,1.33978514,2356.4,2356.3,4.24394]
[1727948928590,1.33978514,2356.5,2356.2,4.24401]
[1727948928809,1.33978514,2356.5,2356.1,4.24425]
[1727948928810,1.33978514,2356.4,2356.1,4.24425]
[1727948929126,1.33978514,2356.4,2356.0,4.24444]
[1727948929127,5.58362514,2356.4,2356.0,4.24444]
[1727948929327,1.33978514,2356.3,2356.0,4.24444]
[1727948929530,1.33978514,2356.3,2356.0,4.24437]
[1727948929830,6.02452013,2356.5,2356.1,4.24427]
[1727948929831,1.33978514,2356.4,2356.1,4.24427]
[1727948931527,5.58354514,2356.4,2356.0,4.24443]
[1727948931740,9.82788514,2356.3,2355.9,4.24461]
[1727948931891,5.58378514,2356.3,2355.9,4.24461]
[1727948932102,5.58378514,2356.3,2355.8,4.24481]
[1727948932402,5.58378514,2356.3,2355.6,5.0120196]
[1727948932403,4.24456,2356.0,2354.8,13.01676101]
[1727948932744,4.24456,2356.0,2355.5,4.24525]
[1727948932745,4.24468,2355.9,2355.5,4.24525]
[1727948932900,4.24468,2355.9,2355.5,8.49054]
[1727948932901,5.58446514,2355.9,2355.5,8.49054]
[1727948933603,1.33978514,2355.9,2355.6,4.2452]
[1727948933809,5.58445514,2355.9,2355.5,4.24535]
[1727948934106,5.58445514,2355.9,2355.5,4.24527]
[1727948934538,5.58445514,2355.9,2355.5,8.49057]
[1727948934691,5.58445514,2355.9,2355.5,4.24527]
[1727948934890,5.58445514,2355.9,2355.3,4.24556]
[1727948934891,4.24511,2355.7,2355.3,4.24556]
[1727948935096,5.58489514,2355.7,2355.1,7.24598]
[1727948935291,4.2453,2355.6,2355.2,7.24585]
[1727948935532,1.33978514,2355.7,2355.3,4.24563]
[1727948935738,5.58465514,2355.8,2355.4,4.24545]
[1727948935900,1.33978514,2355.8,2355.4,4.24545]
[1727948936095,1.33978514,2355.9,2355.6,4.24513]
[1727948937642,1.33978514,2356.0,2355.7,4.24499]
[1727948937794,5.58408514,2356.1,2355.7,0.849012]
[1727948937995,5.58408514,2356.1,2355.6,4.24507]
[1727948937996,4.24449,2356.0,2355.6,4.24507]
[1727948938230,4.24449,2356.0,2355.6,8.49014]
[1727948938433,5.58433514,2356.0,2355.6,4.24507]
[1727948938821,1.33978514,2356.0,2355.6,4.24507]
[1727948939015,1.33978514,2356.0,2355.7,4.24495]
[1727948940247,4.24489,2355.8,2355.4,4.24538]
[1727948940408,4.24528,2355.6,2355.2,7.24576]
[1727948940616,4.24528,2355.6,2355.2,11.49158]
[1727948940819,4.24528,2355.6,2355.2,7.24576]
[1727948941340,4.24592,2355.2,2354.8,4.2465]
[1727948941553,4.05688276,2355.4,2354.8,4.2465]
[1727948941554,4.24586,2355.3,2354.8,4.2465]
[1727948941699,4.24586,2355.3,2354.9,4.24638]
[1727948941900,4.24593,2355.2,2354.8,4.24661]
[1727948942095,4.2464,2355.0,2354.5,4.24716]
[1727948942424,4.05688276,2355.0,2354.5,4.24716]
[1727948942747,4.05688276,2355.0,2354.3,4.24744]
[1727948942748,5.58590514,2355.1,2354.6,4.24697]
[1727948943046,10.08369289,2355.2,2354.7,4.671497]
[1727948943047,5.58572514,2355.2,2354.7,4.671497]
[1727948943212,4.24594,2355.2,2354.8,4.24655]
[1727948943545,5.58556514,2355.3,2354.9,4.24645]
[1727948943850,1.78087013,2355.4,2355.1,4.24601]
[1727948943851,1.33978514,2355.4,2355.1,4.24601]
[1727948944002,1.78087013,2355.5,2355.1,4.33092316]
[1727948944003,1.33978514,2355.5,2355.1,4.33092316]
[1727948944209,10.27152013,2355.6,2355.2,4.2459]
[1727948944210,5.58509514,2355.6,2355.2,4.2459]
[1727948944510,9.83043514,2355.6,2355.1,4.24601]
[1727948944693,9.83043514,2355.6,2355.1,4.33092311]
[1727948944899,4.24541,2355.5,2355.1,4.33092311]
[1727948945099,5.58509514,2355.6,2355.2,4.2459]
[1727948945398,4.2454,2355.5,2355.1,5.10373331]
[1727948946344,5.58508514,2355.6,2355.1,5.10365331]
[1727948946955,5.58508514,2355.6,2355.2,4.2459]
[1727948947196,1.33978514,2355.7,2355.2,0.51036533]
[1727948947316,1.33978514,2355.8,2355.3,4.24573]
[1727948947521,5.58436514,2356.0,2355.5,4.2453]
[1727948947719,4.24468,2355.9,2355.5,4.2453]
[1727948948528,4.24468,2355.9,2355.4,0.47560953]
[1727948948726,4.24486,2355.8,2355.4,4.72114953]
[1727948948924,4.24486,2355.8,2355.4,4.24554]
[1727948949232,4.24468,2355.9,2355.4,8.491]
[1727948949748,4.24468,2355.9,2355.5,4.24537]
[1727948952114,8.30187276,2355.8,2355.2,8.49169]
[1727948952360,8.30187276,2355.8,2355.2,4.24583]
[1727948952361,4.24512,2355.7,2355.2,4.24583]
[1727948952907,4.24512,2355.7,2355.2,8.49168]
[1727948953090,4.24512,2355.7,2355.2,5.50803023]
[1727948953260,4.24512,2355.7,2355.2,9.75387023]
[1727948953462,4.24528,2355.6,2355.2,4.24581]
[1727948953662,4.24512,2355.7,2355.3,4.24565]
[1727948953663,4.24502,2355.7,2355.3,4.24565]
[1727948954264,4.2454,2355.5,2355.1,4.24607]
[1727948954506,4.24534,2355.6,2355.1,4.24607]
[1727948954864,4.24532,2355.6,2355.1,4.24607]
[1727948955116,2.32275365,2355.7,2355.1,3.0]
[1727948955264,4.24529,2355.6,2355.2,4.24589]
[1727948955600,4.99992931,2355.6,2355.2,4.24589]
[1727948956081,4.05688276,2355.4,2354.6,4.24691]
[1727948956340,4.24633,2355.0,2354.6,4.24691]
[1727948956842,4.24619,2355.1,2354.7,4.2468]
[1727948957155,1.33978514,2355.4,2355.0,4.24616]
[1727948957358,7.91542814,2355.6,2355.3,4.24573]
[1727948957565,5.58463514,2355.8,2355.4,4.24547]
[1727948957918,5.58463514,2355.8,2355.3,4.24573]
[1727948957919,4.24503,2355.7,2355.3,4.24573]
[1727948958216,0.98296651,2355.6,2355.3,8.49137]
[1727948958420,5.58463514,2355.8,2355.3,8.49137]
[1727948958759,4.24503,2355.7,2355.3,4.24564]
[1727948958933,5.63368479,2355.7,2355.3,4.24564]
[1727948960635,4.24485,2355.8,2355.3,8.4913]
[1727948961060,4.24505,2355.7,2355.3,4.24564]
[1727948961631,4.24533,2355.6,2355.2,4.24591]
[1727948961889,4.24551,2355.5,2355.1,3.0]
[1727948962173,4.24551,2355.5,2354.8,4.24656]
[1727948962174,4.24595,2355.2,2354.8,4.24656]
[1727948962378,4.24595,2355.2,2354.8,8.49311]
[1727948962739,4.24595,2355.2,2354.8,4.24655]
[1727948963340,4.24589,2355.3,2354.8,4.24655]
[1727948963642,5.21014579,2355.3,2354.9,4.24645]
[1727948964259,4.24592,2355.2,2354.8,4.2466]
[1727948965976,0.96425579,2355.3,2354.8,4.2466]
[1727948966140,5.21002579,2355.3,2354.9,4.24639]
[1727948967137,5.21002579,2355.3,2354.8,4.2466]
[1727948967138,4.24603,2355.2,2354.8,4.2466]
[1727948967587,4.24603,2355.2,2354.8,4.24657]
[1727948967810,0.96425579,2355.3,2354.8,4.24657]
[1727948967995,5.21002579,2355.3,2354.9,4.24644]
[1727948968716,4.24593,2355.2,2354.8,4.24657]
[1727948969260,5.21002579,2355.3,2354.9,4.24644]
[1727948970303,5.21002579,2355.3,2354.9,8.49288]
[1727948970609,5.21002579,2355.3,2354.9,4.24644]
[1727948971417,5.21002579,2355.3,2354.9,8.49281]
[1727948971756,5.21002579,2355.3,2354.9,4.24637]
[1727948972519,1.33978514,2355.8,2355.0,0.05973628]
[1727948972718,6.46647214,2356.1,2355.7,4.24493]
[1727948972719,1.33978514,2356.0,2355.7,4.24493]
[1727948972957,5.58419514,2356.1,2355.7,4.24493]
[1727948973152,0.82473423,2356.0,2355.7,4.24493]
[1727948973370,4.24469,2355.9,2355.5,4.2452]
[1727948973661,4.24469,2355.9,2355.5,4.24538]
[1727948973819,5.89382623,2355.9,2355.5,4.24538]
[1727948974018,10.13862623,2355.9,2355.4,4.24549]
[1727948974225,5.89382623,2355.9,2355.4,8.4909]
[1727948974421,4.24486,2355.8,2355.4,4.24541]
[1727948974681,4.24486,2355.8,2354.8,4.24654]
[1727948974682,4.24563,2355.4,2354.8,4.24654]
[1727948974817,4.24603,2355.2,2354.7,4.24675]
[1727948975423,8.49184,2355.3,2354.8,4.24654]
[1727948975631,4.24619,2355.1,2354.7,4.24675]
[1727948975925,4.24602,2355.2,2354.8,4.24663]
[1727948977065,0.75832263,2355.3,2354.6,4.24696]
[1727948977066,4.24612,2355.1,2354.6,4.24693]
[1727948977279,4.24637,2355.0,2354.6,4.24693]
[1727948977469,4.88054278,2355.1,2354.4,4.24719]
[1727948977470,4.24612,2355.1,2354.4,4.24719]
[1727948977758,4.24628,2355.0,2354.6,4.24692]
[1727948977962,5.58573514,2355.2,2354.6,4.24692]
[1727948978265,4.24614,2355.1,2354.7,4.24682]
[1727948978468,4.2463,2355.0,2354.6,4.24692]
[1727948978678,2.15227793,2355.1,2354.1,3.0]
[1727948978879,4.24655,2354.9,2354.4,4.24725]
[1727948979437,1.33978514,2355.0,2354.1,4.2478]
[1727948979642,4.2472,2354.5,2354.1,4.2478]
[1727948980078,4.24745,2354.4,2353.9,4.24821]
[1727948980293,4.24745,2354.4,2353.9,4.24815]
[1727948980577,1.33978514,2354.7,2354.2,4.24758]
[1727948980788,7.21916682,2354.9,2354.4,4.24723]
[1727948980789,5.58624514,2354.9,2354.4,4.24723]
[1727948980968,4.24646,2354.9,2354.5,4.671903]
[1727948981169,4.24646,2354.9,2354.5,4.24718]
[1727948981479,1.33978514,2355.0,2353.9,3.0]
[1727948981776,5.58608514,2355.0,2354.5,4.24703]
[1727948981978,4.24655,2354.9,2354.4,4.2473]
[1727948982338,4.24655,2354.9,2354.4,4.24728]
[1727948982544,4.24655,2354.9,2354.4,8.49454]
[1727948982774,4.24655,2354.9,2354.4,4.24726]
[1727948983043,4.24701,2354.6,2354.1,4.24778]
[1727948983259,4.2469,2354.7,2354.2,4.24765]
[1727948983480,4.84490369,2354.7,2354.2,4.24765]